[Event "45th FIDE Womens Olympiad 2024"]
[Site "Budapest"]
[Date "2024.09.13"]
[Round "3.30"]
[White "Yip, Carissa"]
[Black "Li, Yunshan"]
[Result "1-0"]
[ECO "B30"]
[WhiteElo "2386"]
[BlackElo "2268"]
[Annotator "RC"]
[PlyCount "81"]
[EventDate "2024.09.05"]
[EventType "team-tourn"]
[EventCountry "HUN"]
[SourceTitle "playchess.com"]
[Source "ChessBase"]
[SourceQuality "1"]
[WhiteTeam "United States of America"]
[BlackTeam "Canada"]
[WhiteTeamCountry "USA"]
[BlackTeamCountry "CAN"]
[TimeControl "40/5400+30:1800+30"]

1. e4 {[%emt 0:00:01]} c5 {[%emt 0:00:12]} 2. Nf3 {[%emt 0:00:28]} e6 {[%emt 0:00:08]} 3. d3 {[%emt 0:00:42]} Nc6 {[%emt 0:00:17]} 4. g3 {[%emt 0:00:21]} Nf6 {[%emt 0:01:06]} 5. Bg2 {[%emt 0:00:05]} Be7 {[%emt 0:01:02]} 6. O-O {[%emt 0:00:07]} O-O {[%emt 0:00:26]} 7. Re1 {[%emt 0:00:39]} d6 {[%emt 0:01:26]} 8. c3 {[%emt 0:01:51]} Bd7 {[%emt 0:02:13]} 9. d4 {[%emt 0:02:55]} cxd4 {[%emt 0:07:06]} 10. cxd4 {[%emt 0:01:07]} d5 {[%emt 0:01:08]} 11. e5 {[%emt 0:00:34]} Ne4 {[%emt 0:01:11]} 12. Nbd2 {[%emt 0:06:20]} Nxd2 {[%emt 0:01:22]} 13. Bxd2 {[%emt 0:00:05]} Rc8 {[%emt 0:04:59]} 14. Bf1 {[%emt 0:04:35]} f5 {[%emt 0:11:53]} 15. exf6 {[%emt 0:01:48]} Bxf6 {[%emt 0:00:13]} 16. Bc3 {[%emt 0:00:19]} Qe8 {[%emt 0:01:49]} 17. h4 {[%emt 0:09:02]} Qf7 {[%emt 0:04:38]} 18. Qd2 {[%emt 0:02:01]} Be7 {[%emt 0:08:53]} 19. Re3 {[%emt 0:03:09]} Qh5 {[%emt 0:02:59]} 20. Be2 {[%emt 0:00:29]} Qf5 {[%emt 0:00:50]} 21. Bd3 {[%emt 0:02:43]} Qh5 {[%emt 0:00:37]} 22. Be2 {[%emt 0:07:12]} Qf5 {[%emt 0:01:00]} 23. Rf1 {[%emt 0:00:05]} Rf7 {[%emt 0:08:07]} 24. b4 {[%emt 0:06:22]} Bf6 {[%emt 0:16:30]} 25. Nh2 {[%emt 0:06:55]} Be7 {[%emt 0:20:31]} 26. b5 {[%emt 0:04:13]} Nd8 {[%emt 0:00:46]} 27. Re5 {[%emt 0:01:19]} Qg6 {[%emt 0:01:00]} 28. h5 {[%emt 0:17:41]} Qh6 {[%emt 0:00:24]} 29. Qe1 {[%emt 0:00:03]} g5 {[%emt 0:01:09]} 30. Ng4 {[%emt 0:07:48]} Qg7 {[%emt 0:00:28]} 31. h6 {[%emt 0:00:56]} Qg6 {[%emt 0:00:58]} 32. Qd2 {[%emt 0:01:37]} Rf8 {[%emt 0:00:26]} 33. Bd3 {[%emt 0:02:39]} Qh5 {[%emt 0:00:26]} 34. Bb4 {[%emt 0:01:26]} Bxb4 {[%emt 0:00:44]} 35. Rxg5+ {[%emt 0:00:09]} Kh8 {[%emt 0:00:30]} 36. Qxb4 {[%emt 0:00:16]} Nc6 {[%emt 0:00:30]} 37. Qxf8+ {[%emt 0:00:14]} Rxf8 {[%emt 0:00:04]} 38. Rxh5 {[%emt 0:00:03]} Nxd4 {[%emt 0:00:11]} 39. Ne5 {[%emt 0:00:34]} Bxb5 {[%emt 0:00:23]} 40. Bxb5 {[%emt 0:00:05]} Nxb5 {[%emt 0:00:02]} 41. Rc1 {[%emt 0:30:46]} 1-0

[Event "45th FIDE Womens Olympiad 2024"]
[Site "Budapest"]
[Date "2024.09.13"]
[Round "3.30"]
[White "Oyenga, Justine Anassika"]
[Black "Hussin, Fazreena"]
[Result "1/2-1/2"]
[ECO "C02"]
[WhiteElo "1503"]
[BlackElo "1700"]
[Annotator "NA"]
[PlyCount "97"]
[EventDate "2024.09.05"]
[EventType "team-tourn"]
[EventCountry "HUN"]
[SourceTitle "playchess.com"]
[Source "ChessBase"]
[SourceQuality "1"]
[WhiteTeam "Togo"]
[BlackTeam "Brunei Darussalam"]
[WhiteTeamCountry "TOG"]
[BlackTeamCountry "BRN"]
[TimeControl "40/5400+30:1800+30"]

1. e4 e6 2. Nf3 d5 3. e5 c5 4. d4 cxd4 5. Nxd4 Nc6 6. Bb5 Qb6 7. Be3 Bc5 8. O-O Bxd4 9. Bxc6+ bxc6 10. Bxd4 c5 11. Be3 Qxb2 12. Nd2 Qxe5 13. Bxc5 Nf6 14. Re1 Qc3 15. Nb3 Bb7 16. Re3 Qc4 17. Bd4 Rc8 18. Rc1 Qa6 19. Nc5 Qc6 20. Nxb7 Qxb7 21. Rb1 Qa6 22. Bxf6 gxf6 23. Rb2 Qc4 24. h3 h5 25. Qd3 Qxd3 26. Rxd3 O-O 27. Rg3+ Kh7 28. Ra3 Rc7 29. Kh2 Rg8 30. Rf3 f5 31. a4 d4 32. a5 a6 33. g3 Kg6 34. h4 f6 35. Rb6 Ra8 36. Rxe6 Rxc2 37. Rd6 Rc3 38. Kg2 Rc5 39. Ra3 Rc4 40. Rd3 Ra4 41. R3xd4 Rxa5 42. Kh3 Ra1 43. f3 Re8 44. Rd2 Re3 45. Rf2 Raa3 46. Kg2 Kf7 47. Rd8 a5 48. Rd7+ Kg6 49. Rd8 1/2-1/2

[Event "45th FIDE Womens Olympiad 2024"]
[Site "Budapest"]
[Date "2024.09.13"]
[Round "3.31"]
[White "Pham, Bich Ngoc"]
[Black "Krush, Irina"]
[Result "0-1"]
[ECO "A05"]
[WhiteElo "2199"]
[BlackElo "2396"]
[Annotator "RC"]
[PlyCount "46"]
[EventDate "2024.09.05"]
[EventType "team-tourn"]
[EventCountry "HUN"]
[SourceTitle "playchess.com"]
[Source "ChessBase"]
[SourceQuality "1"]
[WhiteTeam "Canada"]
[BlackTeam "United States of America"]
[WhiteTeamCountry "CAN"]
[BlackTeamCountry "USA"]
[TimeControl "40/5400+30:1800+30"]

1. Nf3 {[%emt 0:00:05]} Nf6 {[%emt 0:00:13]} 2. g3 {[%emt 0:00:32]} b5 {[%emt 0:00:33]} 3. a4 {[%emt 0:04:36]} b4 {[%emt 0:00:47]} 4. d4 {[%emt 0:07:36]} e6 {[%emt 0:01:59]} 5. a5 {[%emt 0:15:08]} c5 {[%emt 0:06:00]} 6. Bg2 {[%emt 0:01:04]} d5 {[%emt 0:05:03]} 7. c4 {[%emt 0:04:57]} bxc3 {[%emt 0:03:17]} 8. Nxc3 {[%emt 0:07:19]} Nc6 {[%emt 0:10:29]} 9. O-O {[%emt 0:02:06]} Be7 {[%emt 0:01:52]} 10. dxc5 {[%emt 0:07:13]} Bxc5 {[%emt 0:04:05]} 11. e4 {[%emt 0:02:44]} O-O {[%emt 0:04:19]} 12. Bg5 {[%emt 0:03:03]} dxe4 {[%emt 0:10:55]} 13. Nd2 {[%emt 0:04:46]} Ba6 {[%emt 0:12:51]} 14. Re1 {[%emt 0:18:22]} Be7 {[%emt 0:15:58]} 15. Ndxe4 {[%emt 0:08:26]} Nxe4 {[%emt 0:00:23]} 16. Bxe7 {[%emt 0:05:14]} Qxe7 {[%emt 0:02:16]} 17. Rxe4 {[%emt 0:01:53]} Rab8 {[%emt 0:03:31]} 18. Nd5 {[%emt 0:03:35]} Qd8 {[%emt 0:00:59]} 19. Nc3 {[%emt 0:00:26]} Rxb2 {[%emt 0:01:51]} 20. Na4 {[%emt 0:00:53]} Rd2 {[%emt 0:01:29]} 21. Qe1 {[%emt 0:00:29]} Nd4 {[%emt 0:01:59]} 22. Rxd4 {[%emt 0:00:32]} Qxd4 {[%emt 0:01:33]} 23. Nc5 {[%emt 0:00:21]} Re2 {[%emt 0:01:25]} 0-1

[Event "45th FIDE Womens Olympiad 2024"]
[Site "Budapest"]
[Date "2024.09.13"]
[Round "3.31"]
[White "Redzuan, Nur Ainul Mardhiah"]
[Black "Kponsou, Afiwa"]
[Result "0-1"]
[ECO "B06"]
[WhiteElo "1481"]
[BlackElo "1453"]
[Annotator "NA"]
[PlyCount "82"]
[EventDate "2024.09.05"]
[EventType "team-tourn"]
[EventCountry "HUN"]
[SourceTitle "playchess.com"]
[Source "ChessBase"]
[SourceQuality "1"]
[WhiteTeam "Brunei Darussalam"]
[BlackTeam "Togo"]
[BlackTeamCountry "TOG"]
[TimeControl "40/5400+30:1800+30"]

1. e4 d6 2. d4 g6 3. Nf3 Bg7 4. Nc3 Nd7 5. Bc4 e6 6. O-O Ne7 7. Be3 O-O 8. h3 a6 9. a4 c5 10. Re1 Qc7 11. Qd3 Nb6 12. Ba2 c4 13. Qd2 Bd7 14. b3 Rac8 15. Rac1 d5 16. Bf4 Qd8 17. exd5 cxb3 18. Bxb3 Nexd5 19. Nxd5 Nxd5 20. Bh6 Bc6 21. c4 Nb6 22. Bxg7 Kxg7 23. Qb4 Bxf3 24. gxf3 Qxd4 25. a5 Nd5 26. Qxb7 Rb8 27. Red1 Qxd1+ 28. Bxd1 Rxb7 29. cxd5 exd5 30. Rc6 Rb1 31. Kf1 Rxd1+ 32. Ke2 Ra1 33. Rxa6 Re8+ 34. Kd3 Ra4 35. Kd2 Re6 36. Ra7 Rf6 37. Ke3 d4+ 38. Ke2 Ra3 39. Ra8 Rfxf3 40. Rd8 Rxh3 41. Rxd4 Ra2+ 0-1

[Event "45th FIDE Womens Olympiad 2024"]
[Site "Budapest"]
[Date "2024.09.13"]
[Round "3.32"]
[White "Lee, Alice"]
[Black "Golubeva, Oksana"]
[Result "1-0"]
[ECO "E01"]
[WhiteElo "2384"]
[BlackElo "2119"]
[Annotator "RC"]
[PlyCount "99"]
[EventDate "2024.09.05"]
[EventType "team-tourn"]
[EventCountry "HUN"]
[SourceTitle "playchess.com"]
[Source "ChessBase"]
[SourceQuality "1"]
[WhiteTeam "United States of America"]
[BlackTeam "Canada"]
[BlackTeamCountry "CAN"]
[TimeControl "40/5400+30:1800+30"]

1. d4 {[%emt 0:00:09]} d5 {[%emt 0:00:12]} 2. c4 {[%emt 0:00:08]} e6 {[%emt 0:00:15]} 3. Nf3 {[%emt 0:00:10]} Nf6 {[%emt 0:00:15]} 4. g3 {[%emt 0:00:07]} c5 {[%emt 0:00:25]} 5. cxd5 {[%emt 0:01:05]} cxd4 {[%emt 0:00:24]} 6. dxe6 {[%emt 0:04:25]} Bxe6 {[%emt 0:00:55]} 7. Bg2 {[%emt 0:02:32]} Nc6 {[%emt 0:00:46]} 8. O-O {[%emt 0:00:30]} Qb6 {[%emt 0:01:38]} 9. b3 {[%emt 0:05:09]} Bc5 {[%emt 0:05:31]} 10. Ne1 {[%emt 0:01:55]} O-O {[%emt 0:01:17]} 11. Nd3 {[%emt 0:00:11]} Rfe8 {[%emt 0:00:13]} 12. Nd2 {[%emt 0:06:10]} Bf8 {[%emt 0:04:16]} 13. Nf4 {[%emt 0:02:07]} Bf5 {[%emt 0:04:00]} 14. Bb2 {[%emt 0:01:55]} Rad8 {[%emt 0:05:33]} 15. Rc1 {[%emt 0:07:21]} Qa6 {[%emt 0:04:00]} 16. a3 {[%emt 0:06:09]} Bd6 {[%emt 0:08:33]} 17. Re1 {[%emt 0:09:17]} Bxf4 {[%emt 0:05:30]} 18. gxf4 {[%emt 0:00:03]} Nd5 {[%emt 0:00:48]} 19. Rc5 {[%emt 0:00:58]} Nce7 {[%emt 0:11:38]} 20. e4 {[%emt 0:04:09]} dxe3 {[%emt 0:00:07]} 21. fxe3 {[%emt 0:00:06]} Qg6 {[%emt 0:16:10]} 22. Kh1 {[%emt 0:02:23]} Nf6 {[%emt 0:01:15]} 23. Bd4 {[%emt 0:10:32]} Ng4 {[%emt 0:05:20]} 24. Qf3 {[%emt 0:01:32]} Nc6 {[%emt 0:00:38]} 25. Qg3 {[%emt 0:03:05]} Nf6 {[%emt 0:10:58]} 26. Bxc6 {[%emt 0:06:29]} bxc6 {[%emt 0:01:29]} 27. Qxg6 {[%emt 0:00:15]} hxg6 {[%emt 0:00:06]} 28. Rec1 {[%emt 0:00:09]} Nd5 {[%emt 0:02:06]} 29. Rxc6 {[%emt 0:13:03]} Nxe3 {[%emt 0:00:28]} 30. Bc3 {[%emt 0:00:13]} Ng4 {[%emt 0:04:01]} 31. Ba5 {[%emt 0:04:02]} Rd3 {[%emt 0:01:15]} 32. Kg1 {[%emt 0:02:45]} Re2 {[%emt 0:00:33]} 33. Nf1 {[%emt 0:00:24]} Nxh2 {[%emt 0:01:21]} 34. R6c3 {[%emt 0:01:03]} Nxf1 {[%emt 0:02:03]} 35. Kxf1 {[%emt 0:02:17]} Ree3 {[%emt 0:01:47]} 36. Rxd3 {[%emt 0:00:20]} Rxd3 {[%emt 0:00:05]} 37. Rc3 {[%emt 0:00:12]} Rd4 {[%emt 0:00:16]} 38. Bc7 {[%emt 0:00:09]} Rd2 {[%emt 0:00:21]} 39. b4 {[%emt 0:00:40]} a6 {[%emt 0:02:29]} 40. Ke1 {[%emt 0:00:31]} Ra2 {[%emt 0:00:08]} 41. Be5 {[%emt 0:31:55]} Be6 {[%emt 0:30:32]} 42. Kd1 {[%emt 0:01:09]} Kf8 {[%emt 0:00:37]} 43. Kc1 {[%emt 0:00:41]} f6 {[%emt 0:00:35]} 44. Bd4 {[%emt 0:00:55]} Bd7 {[%emt 0:00:13]} 45. Rc7 {[%emt 0:00:22]} a5 {[%emt 0:01:18]} 46. Rxd7 {[%emt 0:02:18]} Rxa3 {[%emt 0:00:10]} 47. b5 {[%emt 0:00:12]} Rb3 {[%emt 0:00:41]} 48. b6 {[%emt 0:00:12]} a4 {[%emt 0:00:37]} 49. b7 {[%emt 0:00:16]} a3 {[%emt 0:00:33]} 50. Rd8+ {[%emt 0:00:06]} 1-0

[Event "45th FIDE Womens Olympiad 2024"]
[Site "Budapest"]
[Date "2024.09.13"]
[Round "3.33"]
[White "Wagner, Dinara"]
[Black "Unuk, Laura"]
[Result "1/2-1/2"]
[ECO "D37"]
[WhiteElo "2452"]
[BlackElo "2316"]
[Annotator "RC"]
[PlyCount "61"]
[EventDate "2024.09.05"]
[EventType "team-tourn"]
[EventCountry "HUN"]
[SourceTitle "playchess.com"]
[Source "ChessBase"]
[SourceQuality "1"]
[WhiteTeam "Germany"]
[BlackTeam "Slovenia"]
[WhiteTeamCountry "GER"]
[BlackTeamCountry "SLO"]
[TimeControl "40/5400+30:1800+30"]

1. d4 d5 2. c4 e6 3. Nf3 a6 4. cxd5 exd5 5. Nc3 Nf6 6. Bg5 Be6 7. e3 Nbd7 8. Bd3 h6 9. Bh4 g5 10. Bg3 Nh5 11. O-O Nxg3 12. hxg3 c6 13. e4 dxe4 14. Bxe4 Nf6 15. Re1 Qa5 16. Ne5 Nxe4 17. Nxe4 O-O-O 18. Qf3 Qc7 19. Rac1 Bd5 20. Qf5+ Kb8 21. a3 Qc8 22. Qf6 Rg8 23. g4 Bg7 24. Qf3 Ka8 25. Qg3 f5 26. gxf5 Qxf5 27. Nc3 Qf4 28. Qxf4 gxf4 29. Nxd5 Rxd5 30. Re4 Rgd8 31. Rc4 1/2-1/2

[Event "45th FIDE Womens Olympiad 2024"]
[Site "Budapest"]
[Date "2024.09.13"]
[Round "3.33"]
[White "Asha huang Limboo"]
[Black "Jambo, Linda"]
[Result "0-1"]
[ECO "C50"]
[WhiteElo "1420"]
[BlackElo "1629"]
[Annotator "NA"]
[PlyCount "60"]
[EventDate "2024.09.05"]
[EventType "team-tourn"]
[EventCountry "HUN"]
[SourceTitle "playchess.com"]
[Source "ChessBase"]
[SourceQuality "1"]
[WhiteTeam "Bhutan"]
[BlackTeam "Malawi"]
[WhiteTeamCountry "BTN"]
[BlackTeamCountry "MWI"]
[TimeControl "40/5400+30:1800+30"]

1. e4 e5 2. Nf3 Nc6 3. Bc4 Nf6 4. Nc3 h6 5. d4 exd4 6. Nxd4 Nxd4 7. Qxd4 d6 8. O-O Be7 9. Nd5 O-O 10. Nxf6+ Bxf6 11. Qd3 Re8 12. Re1 c6 13. Rb1 d5 14. Bb3 dxe4 15. Rxe4 Rxe4 16. Bxh6 Qxd3 17. cxd3 Re2 18. Kf1 Bg4 19. Be3 Rxb2 20. Rxb2 Bxb2 21. h3 Be6 22. g4 Bxb3 23. axb3 b6 24. f4 Re8 25. Kf2 c5 26. f5 Bd4 27. Bxd4 cxd4 28. b4 Re3 29. h4 Rxd3 30. g5 Rh3 0-1

[Event "45th FIDE Womens Olympiad 2024"]
[Site "Budapest"]
[Date "2024.09.13"]
[Round "3.34"]
[White "Urh, Zala"]
[Black "Paehtz, Elisabeth"]
[Result "1/2-1/2"]
[ECO "D13"]
[WhiteElo "2251"]
[BlackElo "2455"]
[Annotator "RC"]
[PlyCount "66"]
[EventDate "2024.09.05"]
[EventType "team-tourn"]
[EventCountry "HUN"]
[SourceTitle "playchess.com"]
[Source "ChessBase"]
[SourceQuality "1"]
[WhiteTeam "Slovenia"]
[BlackTeam "Germany"]
[WhiteTeamCountry "SLO"]
[BlackTeamCountry "GER"]
[TimeControl "40/5400+30:1800+30"]

1. d4 Nf6 2. c4 c6 3. Nc3 d5 4. cxd5 cxd5 5. Bf4 Nc6 6. e3 a6 7. Be2 e6 8. Nf3 Be7 9. h3 O-O 10. O-O Bd7 11. Bd3 b5 12. a4 bxa4 13. Nxa4 Nb4 14. Ne5 Nxd3 15. Nxd3 Ne4 16. f3 Nd6 17. Nac5 Bb5 18. Qd2 Nc4 19. Qf2 Bh4 20. Qe2 Be7 21. Qf2 Na5 22. Rfd1 Ra7 23. Qe1 Nc6 24. Ne5 Nxe5 25. Bxe5 Qb6 26. b4 Re8 27. Qc3 Bc4 28. Ra5 Bf8 29. Rda1 Rd8 30. Qa3 Raa8 31. Qc3 Ra7 32. Qa3 Raa8 33. Qc3 Ra7 1/2-1/2

[Event "45th FIDE Womens Olympiad 2024"]
[Site "Budapest"]
[Date "2024.09.13"]
[Round "3.35"]
[White "Klek, Hanna Marie"]
[Black "Janzelj, Lara"]
[Result "1-0"]
[ECO "C90"]
[WhiteElo "2296"]
[BlackElo "2193"]
[Annotator "RC"]
[PlyCount "73"]
[EventDate "2024.09.05"]
[EventType "team-tourn"]
[EventCountry "HUN"]
[SourceTitle "playchess.com"]
[Source "ChessBase"]
[SourceQuality "1"]
[WhiteTeam "Germany"]
[BlackTeam "Slovenia"]
[WhiteTeamCountry "GER"]
[BlackTeamCountry "SLO"]
[TimeControl "40/5400+30:1800+30"]

1. e4 e5 2. Nf3 Nc6 3. Bb5 a6 4. Ba4 Nf6 5. O-O Be7 6. d3 b5 7. Bb3 O-O 8. Re1 d6 9. c3 Na5 10. Bc2 c5 11. Nbd2 Qc7 12. Nf1 Re8 13. h3 Nc6 14. Ng3 Nd8 15. d4 g6 16. d5 Bf8 17. b4 a5 18. Bg5 Bg7 19. a4 cxb4 20. cxb4 axb4 21. Qd2 Bd7 22. axb5 Nb7 23. Be3 Rac8 24. Ra7 Qb8 25. b6 b3 26. Bb1 Nc5 27. Qb4 Red8 28. Nd2 Be8 29. Nc4 Rd7 30. Qa3 Bf8 31. Rc1 Rb7 32. Bxc5 dxc5 33. Qa6 Rd7 34. Rc3 Be7 35. b7 Rcc7 36. Rxb3 Nxd5 37. Ra8 1-0

[Event "45th FIDE Womens Olympiad 2024"]
[Site "Budapest"]
[Date "2024.09.13"]
[Round "3.35"]
[White "Yeshey lhaden"]
[Black "Msukwa, Tupokiwe"]
[Result "0-1"]
[ECO "D02"]
[WhiteElo "1514"]
[BlackElo "1674"]
[Annotator "NA"]
[PlyCount "72"]
[EventDate "2024.09.05"]
[EventType "team-tourn"]
[EventCountry "HUN"]
[SourceTitle "playchess.com"]
[Source "ChessBase"]
[SourceQuality "1"]
[WhiteTeam "Bhutan"]
[BlackTeam "Malawi"]
[WhiteTeamCountry "BTN"]
[BlackTeamCountry "MWI"]
[TimeControl "40/5400+30:1800+30"]

1. d4 d5 2. Bf4 Nf6 3. Nf3 Bf5 4. e3 a6 5. Nbd2 h6 6. c4 e6 7. Qa4+ Nbd7 8. c5 Be7 9. Ne5 O-O 10. Nxd7 Nxd7 11. f3 Bh4+ 12. g3 Be7 13. e4 dxe4 14. fxe4 Bh7 15. h4 Nf6 16. Bd3 Bxc5 17. Qc2 Bxd4 18. Nf3 Bb6 19. O-O-O Qe7 20. Kb1 Ng4 21. Rhe1 e5 22. Bd2 Rfd8 23. Be2 Nf2 24. Qc3 Nxe4 25. Qc1 Nxd2+ 26. Ka1 Nxf3 27. Bxf3 e4 28. Qc4 Rxd1+ 29. Bxd1 Qc5 30. Qxc5 Bxc5 31. Re2 Rd8 32. Bc2 e3 33. Bb3 Rd2 34. Re1 Bd4 35. a4 Rxb2 36. Rd1 Rd2# 0-1

[Event "45th FIDE Womens Olympiad 2024"]
[Site "Budapest"]
[Date "2024.09.13"]
[Round "3.36"]
[White "Vidic, Teja"]
[Black "Schulze, Lara"]
[Result "1-0"]
[ECO "A13"]
[WhiteElo "2128"]
[BlackElo "2283"]
[Annotator "RC"]
[PlyCount "81"]
[EventDate "2024.09.05"]
[EventType "team-tourn"]
[EventCountry "HUN"]
[SourceTitle "playchess.com"]
[Source "ChessBase"]
[SourceQuality "1"]
[WhiteTeam "Slovenia"]
[BlackTeam "Germany"]
[WhiteTeamCountry "SLO"]
[BlackTeamCountry "GER"]
[TimeControl "40/5400+30:1800+30"]

1. Nf3 d5 2. c4 e6 3. b3 d4 4. g3 Nc6 5. Bg2 e5 6. d3 Bb4+ 7. Nbd2 a5 8. O-O f5 9. Qc2 Nf6 10. Nh4 O-O 11. Ndf3 Ra6 12. Bd2 Bc5 13. a3 Qd6 14. Qb2 Re8 15. Ne1 e4 16. Nc2 Rb6 17. Rab1 Ne5 18. b4 Qd8 19. Qa1 axb4 20. axb4 Ra6 21. Qb2 Bf8 22. Nxd4 exd3 23. exd3 Nxd3 24. Qc3 Nxb4 25. Ndxf5 c5 26. Bg5 h6 27. Rfd1 Qb6 28. Be3 g5 29. Nd6 Bxd6 30. Qxf6 Bf8 31. Qxb6 Rxb6 32. Nf3 Be6 33. Ne5 Bf5 34. Nd7 Rg6 35. Nxf8 Rxf8 36. Bxc5 Bxb1 37. Rxb1 Rc8 38. Bxb4 Rb6 39. Bd5+ Kh7 40. Be4+ Kg8 41. c5 1-0

[Event "45th FIDE Womens Olympiad 2024"]
[Site "Budapest"]
[Date "2024.09.13"]
[Round "3.37"]
[White "Linares Napoles, Oleiny"]
[Black "Khademalsharieh, Sarasadat"]
[Result "1/2-1/2"]
[ECO "A13"]
[WhiteElo "2201"]
[BlackElo "2468"]
[Annotator "RC"]
[PlyCount "59"]
[EventDate "2024.09.05"]
[EventType "team-tourn"]
[EventCountry "HUN"]
[SourceTitle "playchess.com"]
[Source "ChessBase"]
[SourceQuality "1"]
[WhiteTeam "Cuba"]
[BlackTeam "Spain"]
[WhiteTeamCountry "CUB"]
[BlackTeamCountry "ESP"]
[TimeControl "40/5400+30:1800+30"]

1. Nf3 d5 2. c4 e6 3. g3 dxc4 4. Bg2 Nd7 5. O-O a6 6. Qc2 Ngf6 7. Qxc4 b5 8. Qc2 Bb7 9. b3 c5 10. Bb2 Rc8 11. d3 Be7 12. Nbd2 O-O 13. Rac1 Qb6 14. Qb1 Rfd8 15. Rfd1 h6 16. Qa1 Ne8 17. d4 Bf6 18. h3 Qa7 19. g4 Qb8 20. dxc5 Nxc5 21. Be5 Qa8 22. h4 Ne4 23. Nxe4 Rxd1+ 24. Rxd1 Bxe4 25. g5 hxg5 26. hxg5 Be7 27. Bf4 Rd8 28. Rxd8 Qxd8 29. Qd4 Qxd4 30. Nxd4 1/2-1/2

[Event "45th FIDE Womens Olympiad 2024"]
[Site "Budapest"]
[Date "2024.09.13"]
[Round "3.37"]
[White "Spinola, Divania"]
[Black "Lazzarini, Giulia"]
[Result "1-0"]
[ECO "C50"]
[WhiteElo "1583"]
[BlackElo "1520"]
[Annotator "NA"]
[PlyCount "29"]
[EventDate "2024.09.05"]
[EventType "team-tourn"]
[EventCountry "HUN"]
[SourceTitle "playchess.com"]
[Source "ChessBase"]
[SourceQuality "1"]
[WhiteTeam "Cape Verde"]
[BlackTeam "San Marino"]
[BlackTeamCountry "SMR"]
[TimeControl "40/5400+30:1800+30"]

1. e4 e5 2. Nf3 Nc6 3. Nc3 d6 4. Bc4 Bg4 5. h3 Bh5 6. d3 Be7 7. O-O Qd7 8. Be3 a6 9. a4 O-O-O 10. Re1 f5 11. exf5 Nh6 12. Be6 Be8 13. Bxd7+ Bxd7 14. g4 g6 15. Bxh6 1-0

[Event "45th FIDE Womens Olympiad 2024"]
[Site "Budapest"]
[Date "2024.09.13"]
[Round "3.38"]
[White "Garcia Martin, Marta"]
[Black "Arribas Robaina, Maritza"]
[Result "1/2-1/2"]
[ECO "C10"]
[WhiteElo "2318"]
[BlackElo "2143"]
[Annotator "RC"]
[PlyCount "69"]
[EventDate "2024.09.05"]
[EventType "team-tourn"]
[EventCountry "HUN"]
[SourceTitle "playchess.com"]
[Source "ChessBase"]
[SourceQuality "1"]
[WhiteTeam "Spain"]
[BlackTeam "Cuba"]
[WhiteTeamCountry "ESP"]
[BlackTeamCountry "CUB"]
[TimeControl "40/5400+30:1800+30"]

1. e4 e6 2. d4 d5 3. Nc3 Nf6 4. Bg5 dxe4 5. Nxe4 Nbd7 6. Nf3 h6 7. Nxf6+ Nxf6 8. Bh4 Be7 9. Bd3 c5 10. dxc5 Qa5+ 11. c3 Qxc5 12. Qe2 a6 13. O-O-O Bd7 14. Kb1 Bc6 15. Ne5 Nd7 16. Bg3 Nxe5 17. Bxe5 Bf6 18. Bxf6 gxf6 19. Be4 Ke7 20. f4 Rad8 21. Qf3 Rxd1+ 22. Rxd1 Rc8 23. Bxc6 Qxc6 24. Qd3 f5 25. Kc1 Qc7 26. Qg3 Kf8 27. Qh4 Kg7 28. Rd3 Qc4 29. Kc2 Qxa2 30. Rg3+ Kh7 31. Rh3 Qa4+ 32. Kd2 Kg8 33. Rg3+ Kh7 34. Rh3 Kg8 35. Rg3+ 1/2-1/2

[Event "45th FIDE Womens Olympiad 2024"]
[Site "Budapest"]
[Date "2024.09.13"]
[Round "3.39"]
[White "Miranda Llanes, Yerisbel"]
[Black "Vega Gutierrez, Sabrina"]
[Result "0-1"]
[ECO "D41"]
[WhiteElo "2294"]
[BlackElo "2374"]
[Annotator "RC"]
[PlyCount "110"]
[EventDate "2024.09.05"]
[EventType "team-tourn"]
[EventCountry "HUN"]
[SourceTitle "playchess.com"]
[Source "ChessBase"]
[SourceQuality "1"]
[WhiteTeam "Cuba"]
[BlackTeam "Spain"]
[WhiteTeamCountry "CUB"]
[BlackTeamCountry "ESP"]
[TimeControl "40/5400+30:1800+30"]

1. d4 d5 2. c4 e6 3. Nc3 Nf6 4. cxd5 Nxd5 5. e4 Nxc3 6. bxc3 c5 7. Nf3 cxd4 8. cxd4 Bb4+ 9. Bd2 Bxd2+ 10. Qxd2 O-O 11. Bc4 Nd7 12. O-O b6 13. d5 Nc5 14. Rfe1 Bb7 15. Rad1 exd5 16. exd5 Qd6 17. Qd4 Rad8 18. Ne5 a6 19. a3 Rfe8 20. Re3 h6 21. h4 Re7 22. Ba2 b5 23. Ng4 Rxe3 24. Nxe3 Bc8 25. Rc1 Ne6 26. Qb2 Nf8 27. Rc6 Qf4 28. g3 Qf3 29. Qe5 Bd7 30. Rc7 Re8 31. Qf4 Qxf4 32. gxf4 Re4 33. Ra7 Ra4 34. Nc2 Rxf4 35. Rxa6 Rg4+ 36. Kf1 Rxh4 37. Nb4 g6 38. Ke2 h5 39. Bb1 Bg4+ 40. Kd2 Rh2 41. Be4 Rxf2+ 42. Ke3 Re2+ 43. Kd4 h4 44. a4 bxa4 45. Rxa4 f5 46. Bd3 Re1 47. Nc2 h3 48. Bc4 h2 49. Nxe1 h1=Q 50. d6+ Kg7 51. Nd3 Qe4+ 52. Kc3 Qe3 53. Rb4 Bf3 54. Rb5 Nd7 55. Rb1 Be4 0-1

[Event "45th FIDE Womens Olympiad 2024"]
[Site "Budapest"]
[Date "2024.09.13"]
[Round "3.40"]
[White "Matnadze Bujiashvili, Ann"]
[Black "Forgas Moreno, Yaniela"]
[Result "1-0"]
[ECO "E67"]
[WhiteElo "2338"]
[BlackElo "2203"]
[Annotator "RC"]
[PlyCount "97"]
[EventDate "2024.09.05"]
[EventType "team-tourn"]
[EventCountry "HUN"]
[SourceTitle "playchess.com"]
[Source "ChessBase"]
[SourceQuality "1"]
[WhiteTeam "Spain"]
[BlackTeam "Cuba"]
[WhiteTeamCountry "ESP"]
[BlackTeamCountry "CUB"]
[TimeControl "40/5400+30:1800+30"]

1. Nf3 Nf6 2. c4 g6 3. b3 Bg7 4. Bb2 d6 5. g3 O-O 6. d4 Nbd7 7. Bg2 e5 8. Nc3 Re8 9. e3 c6 10. O-O Qc7 11. Rc1 Nf8 12. h3 h5 13. e4 Ne6 14. Nd5 cxd5 15. cxd5 Qd8 16. dxe6 Bxe6 17. dxe5 Nxe4 18. Nd4 d5 19. Nxe6 Rxe6 20. Qe1 Qb6 21. Bxe4 dxe4 22. Qxe4 Rae8 23. Bd4 Qa6 24. f4 Qxa2 25. Qxb7 R6e7 26. Qb5 a6 27. Qc4 Rb7 28. Rf3 Reb8 29. Ra1 Qd2 30. Bf2 Qb2 31. Rxa6 Rxb3 32. Rxb3 Qxb3 33. Qxb3 Rxb3 34. Ra8+ Kh7 35. Kg2 Rb7 36. Re8 Rb5 37. Rc8 g5 38. Kf3 gxf4 39. gxf4 Kg6 40. Ke4 Rb4+ 41. Bd4 Rb1 42. f5+ Kh7 43. Rc7 Kg8 44. Bc3 Rc1 45. f6 Bh6 46. e6 Rc2 47. exf7+ Kh8 48. Kf5 Bf8 49. Rc8 1-0